fUSD/lending_fUSD_20241011
["ID","MTS","AMOUNT","RATE_DAILY","PERIOD"]
[340146317,1728679850685,-500.0,0.00027397,2]
[340146318,1728679850694,-500.0,0.00027397,2]
[340146319,1728679850705,-500.0,0.00027397,2]
[340146320,1728679850716,-500.0,0.00027397,2]
[340146321,1728679850725,-500.0,0.00027397,2]
[340146322,1728679850734,-926.335156,0.00027397,7]
[340146323,1728679850744,-151.0,0.00027397,7]
[340146324,1728679850753,-151.0,0.00027397,7]
[340146325,1728679850764,-500.0,0.00027397,2]
[340146326,1728679850773,-151.0,0.00027397,7]
[340146327,1728679850782,-500.0,0.00027397,2]
[340146328,1728679850791,-500.0,0.00027397,2]
[340146329,1728679850800,-320.292292,0.00027397,7]
[340146330,1728679850809,-500.0,0.00027397,2]
[340146331,1728679850818,-926.335156,0.00027397,7]
[340146332,1728679850828,-500.0,0.00027397,2]
[340146333,1728679850839,-500.0,0.00027397,2]
[340146334,1728679850848,-500.0,0.00027397,2]
[340146335,1728679850859,-320.292292,0.00027397,7]
[340146336,1728679850869,-500.0,0.00027397,2]
[340146337,1728679850878,-500.0,0.00027397,2]
[340146338,1728679850887,-500.0,0.00027397,2]
[340146339,1728679850896,-500.0,0.00027397,2]
[340146340,1728679850905,-500.0,0.00027397,2]
[340146341,1728679850915,-500.0,0.00027397,2]
[340146342,1728679850924,-500.0,0.00027397,2]
[340146343,1728679850934,-500.0,0.00027397,2]
[340146344,1728679850943,-500.0,0.00027397,2]
[340146345,1728679850952,-500.0,0.00027397,2]
[340146346,1728679850962,-500.0,0.00027397,2]
[340146347,1728679850973,-500.0,0.00027397,2]
[340146348,1728679850984,-151.0,0.00027397,7]
[340146349,1728679850993,-500.0,0.00027397,2]
[340146350,1728679851003,-285.541522,0.00027397,7]
[340146351,1728679851014,-285.541522,0.00027397,7]
[340146352,1728679851024,-500.0,0.00027397,2]
[340146353,1728679851034,-500.0,0.00027397,2]
[340146354,1728679851044,-2441.6,0.00027397,2]
[340146355,1728679851055,-500.0,0.00027397,2]
[340146356,1728679851065,-500.0,0.00027397,2]
[340146357,1728679851074,-500.0,0.00027397,2]
[340146358,1728679851085,-500.0,0.00027397,2]
[340146359,1728679851095,-500.0,0.00027397,2]
[340146360,1728679851105,-500.0,0.00027397,2]
[340146361,1728679851114,-500.0,0.00027397,2]
[340146362,1728679851124,-500.0,0.00027397,2]
[340146363,1728679851135,-500.0,0.00027397,2]
[340146364,1728679851146,-500.0,0.00027397,2]
[340146365,1728679851155,-500.0,0.00027397,2]
[340146366,1728679851165,-500.0,0.00027397,2]
[340146367,1728679851175,-500.0,0.00027397,2]
[340146368,1728679851185,-500.0,0.00027397,2]
[340146369,1728679851194,-500.0,0.00027397,2]
[340146370,1728679851203,-500.0,0.00027397,2]
[340146371,1728679851213,-500.0,0.00027397,2]
[340146372,1728679851223,-626.01666869,0.00027397,2]
[340146373,1728679851234,-500.0,0.00027397,2]
[340146374,1728679851244,-500.0,0.00027397,2]
[340146375,1728679851254,-506.17319528,0.00027397,2]
[340146376,1728679851263,-500.0,0.00027397,2]
[340146377,1728679851272,-500.0,0.00027397,2]
[340146378,1728679851280,-500.0,0.00027397,2]
[340146379,1728679851290,-500.0,0.00027397,2]
[340146380,1728679851300,-500.0,0.00027397,2]
[340146381,1728679851310,-310.9883652,0.00027397,2]
[340146382,1728679851321,-500.0,0.00027397,2]
[340146383,1728679851331,-500.0,0.00027397,2]
[340146384,1728679851342,-500.0,0.00027397,2]
[340146385,1728679851353,-500.0,0.00027397,2]
[340146386,1728679851362,-500.0,0.00027397,2]
[340146387,1728679851372,-500.0,0.00027397,2]
[340146388,1728679851383,-500.0,0.00027397,2]
[340146389,1728679851392,-500.0,0.00027397,2]
[340146390,1728679851401,-151.0,0.00027397,7]
[340146391,1728679851410,-500.0,0.00027397,2]
[340146392,1728679851419,-500.0,0.00027397,2]
[340146393,1728679851428,-500.0,0.00027397,2]
[340146394,1728679851438,-500.0,0.00027397,2]
[340146395,1728679851447,-500.0,0.00027397,2]
[340146396,1728679851456,-509.13337393,0.00027397,2]
[340146397,1728679851465,-500.0,0.00027397,2]
[340146398,1728679851474,-500.0,0.00027397,2]
[340146399,1728679851483,-500.0,0.00027397,2]
[340146400,1728679851492,-500.0,0.00027397,2]
[340146401,1728679851501,-500.0,0.00027397,2]
[340146402,1728679851510,-500.0,0.00027397,2]
[340146403,1728679851519,-500.0,0.00027397,2]
[340146404,1728679851528,-500.0,0.00027397,2]
[340146405,1728679851537,-500.0,0.00027397,2]
[340146406,1728679851547,-500.0,0.00027397,2]
[340146407,1728679851556,-500.0,0.00027397,2]
[340146408,1728679851565,-500.0,0.00027397,2]
[340146409,1728679851575,-500.0,0.00027397,2]
[340146410,1728679851584,-513.9515218,0.00027397,2]
[340146411,1728679851593,-322.37727374,0.00027397,2]
[340146412,1728679851602,-500.0,0.00027397,2]
[340146413,1728679851612,-500.0,0.00027397,2]
[340146414,1728679851621,-500.0,0.00027397,2]
[340146415,1728679851630,-500.0,0.00027397,2]
[340146416,1728679851639,-507.37193727,0.00027397,2]
[340146417,1728679851649,-500.0,0.00027397,2]
[340146418,1728679851658,-500.0,0.00027397,2]
[340146419,1728679851668,-529.71699748,0.00027397,2]
[340146420,1728679851677,-516.68150872,0.00027397,2]
[340146421,1728679851686,-500.0,0.00027397,2]
[340146422,1728679851695,-500.0,0.00027397,2]
[340146423,1728679851703,-200.0,0.00027397,2]
[340146424,1728679851712,-500.0,0.00027397,2]
[340146425,1728679851722,-500.0,0.00027397,2]
[340146426,1728679851731,-510.08908662,0.00027397,2]
[340146427,1728679851739,-500.0,0.00027397,2]
[340146428,1728679851748,-515.46241611,0.00027397,2]
[340146429,1728679851757,-500.0,0.00027397,2]
[340146430,1728679851766,-151.0,0.00027397,7]
[340146431,1728679851775,-151.0,0.00027397,7]
[340146432,1728679851783,-151.0,0.00027397,7]
[340146433,1728679851792,-151.0,0.00027397,7]
[340146434,1728679851801,-151.0,0.00027397,7]
[340146435,1728679851810,-6923.3669386,0.00027399,2]
[340146436,1728679851819,-579.7662343,0.00027399,2]
[340146437,1728679851830,-9198.6371084,0.00027418,2]
[340146438,1728679851840,-403.89,0.00027437,2]
[340146439,1728679851850,-2000.0,0.0002757,2]
[340146440,1728679851859,-200.0,0.0002757,2]
[340146441,1728679851868,-3000.0,0.000279,2]
[340146442,1728679851877,-1000.0,0.00028,2]
[340146443,1728679851886,-151.0,0.000282,7]
[340146444,1728679851895,-151.336803,0.000282,7]
[340146445,1728679851904,-151.0,0.000282,7]
[340146446,1728679851913,-261.836065,0.000282,7]
[340146447,1728679851922,-151.0,0.000282,7]
[340146448,1728679851931,-151.0,0.000282,7]
[340146449,1728679851940,-151.0,0.000282,7]
[340146450,1728679851949,-151.0,0.000282,7]
[340146451,1728679851958,-151.0,0.000282,7]
[340146452,1728679851967,-151.0,0.000282,7]
[340146453,1728679851976,-151.0,0.000282,7]
[340146454,1728679851985,-8540.0811512,0.000282,2]
[340146455,1728679851994,-151.0,0.000282,7]
[340146456,1728679852002,-151.0,0.000282,7]
[340146457,1728679852011,-151.0,0.000282,7]
[340146458,1728679852020,-151.0,0.000282,7]
[340146459,1728679852029,-244.610808,0.000282,7]
[340146460,1728679852038,-21312.0662413,0.000282,2]
[340146461,1728679852046,-151.0,0.000282,7]
[340146462,1728679852056,-151.0,0.000282,7]
[340146463,1728679852064,-151.0,0.000282,7]
[340146464,1728679852073,-356.001912,0.000282,7]
[340146465,1728679852082,-356.001912,0.000282,7]
[340146466,1728679852091,-151.0,0.000282,7]
[340146467,1728679852100,-151.0,0.000282,7]
[340146468,1728679852109,-5714.7430979,0.000282,2]
[340146469,1728679852118,-227.855447,0.000282,7]
[340146470,1728679852128,-151.0,0.000282,7]
[340146471,1728679852139,-227.855447,0.000282,7]
[340146472,1728679852148,-151.0,0.000282,7]
[340146473,1728679852159,-151.0,0.000282,7]
[340146474,1728679852167,-151.0,0.000282,7]
[340146475,1728679852178,-151.0,0.000282,7]
[340146476,1728679852186,-151.0,0.000282,7]
[340146477,1728679852196,-151.0,0.000282,7]
[340146478,1728679852205,-151.0,0.000282,7]
[340146479,1728679852215,-579.7662343,0.000282,2]
[340146480,1728679852225,-176.238973,0.000282,7]
[340146481,1728679852236,-176.238973,0.000282,7]
[340146482,1728679852245,-228.738173,0.000282,7]
[340146483,1728679852256,-228.738173,0.000282,7]
[340146484,1728679852265,-44763.6948398,0.000282,2]
[340146485,1728679852274,-32140.40843879,0.000282,2]
[340146486,1728679852471,-3575.74461451,0.000282,2]
[340146487,1728679852480,-151.0,0.000282,7]
[340146488,1728679852489,-151.0,0.000282,7]
[340146489,1728679852499,-285.541522,0.000282,7]
[340146490,1728679852508,-285.541522,0.000282,7]
[340146491,1728679852517,-500.0,0.00028219,2]
[340146492,1728679852526,-506.24893942,0.00028219,2]
[340146493,1728679852535,-506.49907841,0.00028219,2]
[340146494,1728679852544,-500.0,0.00028219,2]
[340146495,1728679852553,-504.3172247,0.00028219,2]
[340146496,1728679852562,-506.28940845,0.00028219,2]
[340146497,1728679852571,-500.0,0.00028219,2]
[340146498,1728679852580,-507.2541836,0.00028219,2]
[340146499,1728679852589,-503.86511189,0.00028219,2]
[340146500,1728679852602,-518.29039374,0.00028219,2]
[340146501,1728679852611,-507.3261184,0.00028219,2]
[340146502,1728679852620,-498.32457738,0.00028219,2]
[340146503,1728679852630,-505.12471231,0.00028219,2]
[340146504,1728679852639,-507.8106639,0.00028219,2]
[340146505,1728679852648,-163.25903168,0.00028219,2]
[340146506,1728679852657,-512.65875064,0.00028219,2]
[340146507,1728679852667,-505.30877019,0.00028219,2]
[340146508,1728679852677,-501.97169178,0.00028219,2]
[340146509,1728679852686,-503.41059408,0.00028219,2]
[340146510,1728679852695,-504.27090155,0.00028219,2]
[340146511,1728679852705,-507.57837427,0.00028219,2]
[340146512,1728679852714,-259.01116839,0.00028219,2]
[340146513,1728679852724,-503.77730585,0.00028219,2]
[340146514,1728679852733,-510.2023047,0.00028219,2]
[340146515,1728679852743,-503.06416348,0.00028219,2]
[340146516,1728679852752,-508.31639815,0.00028219,2]
[340146517,1728679852761,-418.75643277,0.00028219,2]
[340146518,1728679852771,-504.32966979,0.00028219,2]
[340146519,1728679852779,-506.67324108,0.00028219,2]
[340146520,1728679852788,-472.70422819,0.00028219,2]
[340146521,1728679852798,-498.71841454,0.00028219,2]
[340146522,1728679852807,-511.20860856,0.00028219,2]
[340146523,1728679852815,-513.43215458,0.00028219,2]
[340146524,1728679852824,-500.0,0.00028219,2]
[340146525,1728679852833,-504.68821972,0.00028219,2]
[340146526,1728679852842,-504.43755214,0.00028219,2]
[340146527,1728679852851,-504.33818128,0.00028219,2]
[340146528,1728679852860,-508.72077767,0.00028219,2]
[340146529,1728679852869,-504.36795432,0.00028219,2]
[340146530,1728679852879,-512.10706506,0.00028219,2]
[340146531,1728679852888,-503.39540317,0.00028219,2]
[340146532,1728679852897,-278.64441045,0.00028219,2]
[340146533,1728679852906,-500.0,0.00028219,2]
[340146534,1728679852917,-509.07956319,0.00028219,2]
[340146535,1728679852929,-509.44047718,0.00028219,2]
[340146536,1728679852938,-503.93955733,0.00028219,2]
[340146537,1728679852947,-405.14548938,0.00028219,2]
[340146538,1728679852956,-504.48016899,0.00028219,2]
[340146539,1728679852965,-437.88485702,0.00028219,2]
[340146540,1728679852974,-506.69036332,0.00028219,2]
[340146541,1728679852983,-504.33005411,0.00028219,2]
[340146542,1728679852994,-503.19140554,0.00028219,2]
[340146543,1728679853005,-500.0,0.00028219,2]
[340146544,1728679853014,-500.0,0.00028219,2]
[340146545,1728679853024,-511.33871758,0.00028219,2]
[340146546,1728679853033,-509.16392668,0.00028219,2]
[340146547,1728679853043,-508.46141042,0.00028219,2]
[340146548,1728679853054,-510.95876837,0.00028219,2]
[340146549,1728679853063,-500.0,0.00028219,2]
[340146550,1728679853073,-500.0,0.00028219,2]
[340146551,1728679853082,-517.79879546,0.00028219,2]
[340146552,1728679853090,-513.85135828,0.00028219,2]
[340146553,1728679853100,-487.79491936,0.00028219,2]
[340146554,1728679853109,-512.7192108,0.00028219,2]
[340146555,1728679853119,-521.92606611,0.00028219,2]
[340146556,1728679853130,-516.54771888,0.00028219,2]
[340146557,1728679853141,-521.28078935,0.00028219,2]
[340146558,1728679853150,-507.29806847,0.00028219,2]
[340146559,1728679853159,-509.18967699,0.00028219,2]
[340146560,1728679853169,-507.5,0.00028219,2]
[340146561,1728679853179,-310.38442014,0.00028219,2]
[340146562,1728679853195,-514.11494889,0.00028219,2]
[340146563,1728679853204,-648.63124911,0.00028219,2]
[340146564,1728679853213,-474.53097726,0.00028219,2]
[340146565,1728679853222,-514.66447158,0.00028219,2]
[340146566,1728679853231,-524.91791439,0.00028219,2]
[340146567,1728679853240,-505.96090404,0.00028219,2]
[340146568,1728679853249,-500.0,0.00028219,2]
[340146569,1728679853258,-502.64256072,0.00028219,2]
[340146570,1728679853267,-508.69054346,0.00028219,2]
[340146571,1728679853277,-610.68030895,0.00028219,2]
[340146572,1728679853406,-517.6551208,0.00028219,2]
[340146573,1728679853416,-508.63759389,0.00028219,2]
[340146574,1728679853425,-506.36145798,0.00028219,2]
[340146575,1728679853434,-540.92383102,0.00028219,2]
[340146576,1728679853443,-504.07423735,0.00028219,2]
[340146577,1728679853453,-519.66490584,0.00028219,2]
[340146578,1728679853465,-516.67197971,0.00028219,2]
[340146579,1728679853475,-505.52723683,0.00028219,2]
[340146580,1728679853484,-500.0,0.00028219,2]
[340146581,1728679853493,-154.51834114,0.00028219,2]
[340146582,1728679853502,-500.0,0.00028219,2]
[340146583,1728679853513,-500.0,0.00028219,2]
[340146584,1728679853522,-512.50243599,0.00028219,2]
[340146585,1728679853531,-517.38840791,0.00028219,2]
[340146586,1728679853540,-520.93197526,0.00028219,2]
[340146587,1728679853549,-519.31423287,0.00028219,2]
[340146588,1728679853558,-518.88639311,0.00028219,2]
[340146589,1728679853567,-302.30087178,0.00028219,2]
[340146590,1728679853577,-500.0,0.00028219,2]
[340146591,1728679853587,-621.62489947,0.00028219,2]
[340146592,1728679853597,-509.74872238,0.00028219,2]
[340146593,1728679853606,-501.15641838,0.00028219,2]
[340146594,1728679853615,-500.0,0.00028219,2]
[340146595,1728679853626,-500.0,0.00028219,2]
[340146596,1728679853636,-309.98893376,0.00028219,2]
[340146597,1728679853646,-500.0,0.00028219,2]
[340146598,1728679853657,-500.0,0.00028219,2]
[340146599,1728679853669,-500.0,0.00028219,2]
[340146600,1728679853679,-500.0,0.00028219,2]
[340146601,1728679853688,-500.0,0.00028219,2]
[340146602,1728679853697,-500.0,0.00028219,2]
[340146603,1728679853706,-500.0,0.00028219,2]
[340146604,1728679853714,-508.24366415,0.00028219,2]
[340146605,1728679853724,-260.29689487,0.00028219,2]
[340146606,1728679853734,-500.0,0.00028219,2]
[340146607,1728679853745,-512.52823968,0.00028219,2]
[340146608,1728679853754,-500.0,0.00028219,2]
[340146609,1728679853763,-500.0,0.00028219,2]
[340146610,1728679853772,-508.78113551,0.00028219,2]
[340146611,1728679853781,-500.0,0.00028219,2]
[340146612,1728679853790,-500.0,0.00028219,2]
[340146613,1728679853799,-500.0,0.00028219,2]
[340146614,1728679853808,-500.0,0.00028219,2]
[340146615,1728679853817,-285.94238125,0.00028219,2]
[340146616,1728679853826,-150.0,0.00028219,2]
[340146617,1728679853835,-500.0,0.00028219,2]
[340146618,1728679853846,-500.0,0.00028219,2]
[340146619,1728679853855,-500.0,0.00028219,2]
[340146620,1728679853865,-500.0,0.00028219,2]
[340146621,1728679853874,-500.0,0.00028219,2]
[340146622,1728679853884,-500.0,0.00028219,2]
[340146623,1728679853894,-500.0,0.00028219,2]
[340146624,1728679853903,-178.15935113,0.00028219,2]
[340146625,1728679853913,-151.0,0.00028219,7]
[340146626,1728679853922,-151.0,0.00028219,7]
[340146627,1728679853932,-151.0,0.00028219,7]
[340146628,1728679853941,-500.0,0.00028219,2]
[340146629,1728679853951,-529.88127427,0.00028219,2]
[340146630,1728679853960,-151.0,0.00028219,7]
[340146631,1728679853970,-618.26882872,0.00028219,2]
[340146632,1728679853979,-151.0,0.00028219,7]
[340146633,1728679853988,-522.18696659,0.00028219,2]
[340146634,1728679853997,-500.0,0.00028219,2]
[340146635,1728679854007,-580.15678457,0.00028219,2]
[340146636,1728679854016,-510.63913099,0.00028219,2]
[340146637,1728679854025,-522.0848083,0.00028219,2]
[340146638,1728679854035,-511.93976027,0.00028219,2]
[340146639,1728679854043,-500.0,0.00028219,2]
[340146640,1728679854053,-516.89723683,0.00028219,2]
[340146641,1728679854063,-523.27437296,0.00028219,2]
[340146642,1728679854072,-578.38403336,0.00028219,2]
[340146643,1728679854081,-519.98778582,0.00028219,2]
[340146644,1728679854090,-514.79236718,0.00028219,2]
[340146645,1728679854099,-517.47858668,0.00028219,2]
[340146646,1728679854108,-513.64711619,0.00028219,2]
[340146647,1728679854118,-516.21556769,0.00028219,2]
[340146648,1728679854127,-151.0,0.00028219,7]
[340146649,1728679854137,-516.7574467,0.00028219,2]
[340146650,1728679854146,-500.0,0.00028219,2]
[340146651,1728679854155,-235.774346,0.00028219,7]
[340146652,1728679854164,-500.0,0.00028219,2]
[340146653,1728679854173,-500.0,0.00028219,2]
[340146654,1728679854183,-513.47920408,0.00028219,2]
[340146655,1728679854192,-506.16119751,0.00028219,2]
[340146656,1728679854201,-508.4730056,0.00028219,2]
[340146657,1728679854210,-151.0,0.00028219,7]
[340146658,1728679854219,-536.57514002,0.00028219,2]
[340146659,1728679854228,-509.21688944,0.00028219,2]
[340146660,1728679854237,-517.98055793,0.00028219,2]
[340146661,1728679854246,-151.0,0.00028219,7]
[340146662,1728679854255,-505.10308774,0.00028219,2]
[340146663,1728679854263,-500.0,0.00028219,2]
[340146664,1728679854272,-528.8869811,0.00028219,2]
[340146665,1728679854282,-515.7651763,0.00028219,2]
[340146666,1728679854293,-512.01885088,0.00028219,2]
[340146667,1728679854303,-508.99926474,0.00028219,2]
[340146668,1728679854312,-519.56654116,0.00028219,2]
[340146669,1728679854323,-512.70300409,0.00028219,2]
[340146670,1728679854335,-506.10639623,0.00028219,2]
[340146671,1728679854347,-151.0,0.00028219,7]
[340146672,1728679854356,-448.01329757,0.00028219,2]
[340146673,1728679854366,-151.0,0.00028219,7]
[340146674,1728679854376,-500.0,0.00028219,2]
[340146675,1728679854387,-503.06166822,0.00028219,2]
[340146676,1728679854396,-500.0,0.00028219,2]
[340146677,1728679854407,-500.0,0.00028219,2]
[340146678,1728679854416,-507.95319328,0.00028219,2]
[340146679,1728679854426,-505.84603107,0.00028219,2]
[340146680,1728679854435,-522.80016953,0.00028219,2]
[340146681,1728679854445,-515.71693111,0.00028219,2]
[340146682,1728679854454,-151.0,0.00028219,7]
[340146683,1728679854464,-529.95620156,0.00028219,2]
[340146684,1728679854473,-500.0,0.00028219,2]
[340146685,1728679854482,-500.0,0.00028219,2]
[340146686,1728679854491,-500.0,0.00028219,2]
[340146687,1728679854501,-500.0,0.00028219,2]
[340146688,1728679854511,-521.51469222,0.00028219,2]
[340146689,1728679854520,-534.25611636,0.00028219,2]
[340146690,1728679854529,-500.0,0.00028219,2]
[340146691,1728679854538,-520.90723403,0.00028219,2]
[340146692,1728679854547,-535.5550411,0.00028219,2]
[340146693,1728679854557,-506.06092978,0.00028219,2]
[340146694,1728679854566,-507.67574951,0.00028219,2]
[340146695,1728679854576,-500.0,0.00028219,2]
[340146696,1728679854585,-508.9943649,0.00028219,2]
[340146697,1728679854594,-535.13884237,0.00028219,2]
[340146698,1728679854604,-500.0,0.00028219,2]
[340146699,1728679854613,-500.0,0.00028219,2]
[340146700,1728679854623,-507.17265631,0.00028219,2]
[340146701,1728679854633,-527.24582226,0.00028219,2]
[340146702,1728679854642,-525.25954047,0.00028219,2]
[340146703,1728679854651,-482.72973809,0.00028219,2]
[340146704,1728679854662,-519.9939316,0.00028219,2]
[340146705,1728679854673,-531.33094302,0.00028219,2]
[340146706,1728679854683,-504.30025412,0.00028219,2]
[340146707,1728679854692,-500.0,0.00028219,2]
[340146708,1728679854702,-534.6015508,0.00028219,2]
[340146709,1728679854712,-508.55536757,0.00028219,2]
[340146710,1728679854721,-514.6417857,0.00028219,2]
[340146711,1728679854732,-151.0,0.00028219,7]
[340146712,1728679854742,-506.74181438,0.00028219,2]
[340146713,1728679854753,-511.21772896,0.00028219,2]
[340146714,1728679854762,-506.78039621,0.00028219,2]
[340146715,1728679854772,-512.31478462,0.00028219,2]
[340146716,1728679854781,-151.0,0.00028219,7]
[340146717,1728679854790,-522.87608232,0.00028219,2]
[340146718,1728679854800,-504.21410091,0.00028219,2]
[340146719,1728679854809,-500.0,0.00028219,2]
[340146720,1728679854819,-503.32693119,0.00028219,2]
[340146721,1728679854828,-151.0,0.00028219,7]
[340146722,1728679854837,-512.58498276,0.00028219,2]
[340146723,1728679854846,-507.26290871,0.00028219,2]
[340146724,1728679854856,-517.08964929,0.00028219,2]
[340146725,1728679854865,-512.65516048,0.00028219,2]
[340146726,1728679854875,-527.84491738,0.00028219,2]
[340146727,1728679854886,-500.0,0.00028219,2]
[340146728,1728679854896,-500.0,0.00028219,2]
[340146729,1728679854906,-503.17492825,0.00028219,2]
[340146730,1728679854916,-521.17416224,0.00028219,2]
[340146731,1728679854927,-506.71960144,0.00028219,2]
[340146732,1728679854936,-519.6529941,0.00028219,2]
[340146733,1728679854948,-151.366959,0.00028219,7]
[340146734,1728679854957,-151.0,0.00028219,7]
[340146735,1728679854968,-508.4481663,0.00028219,2]
[340146736,1728679854977,-512.1687514,0.00028219,2]
[340146737,1728679854987,-500.0,0.00028219,2]
[340146738,1728679854995,-514.38334618,0.00028219,2]
[340146739,1728679855005,-506.40949543,0.00028219,2]
[340146740,1728679855014,-500.0,0.00028219,2]
[340146741,1728679855023,-508.02572468,0.00028219,2]
[340146742,1728679855032,-517.33222422,0.00028219,2]
[340146743,1728679855041,-513.72717335,0.00028219,2]
[340146744,1728679855050,-515.36964644,0.00028219,2]
[340146745,1728679855059,-500.0,0.00028219,2]
[340146746,1728679855069,-530.75448517,0.00028219,2]
[340146747,1728679855078,-533.72760823,0.00028219,2]
[340146748,1728679855089,-500.0,0.00028219,2]
[340146749,1728679855100,-508.45341065,0.00028219,2]
[340146750,1728679855112,-514.52107769,0.00028219,2]
[340146751,1728679855123,-516.85364013,0.00028219,2]
[340146752,1728679855133,-500.0,0.00028219,2]
[340146753,1728679855143,-508.76238358,0.00028219,2]
[340146754,1728679855155,-516.47098069,0.00028219,2]
[340146755,1728679855166,-500.0,0.00028219,2]
[340146756,1728679855176,-505.91912739,0.00028219,2]
[340146757,1728679855185,-151.0,0.00028219,7]
[340146758,1728679855195,-500.0,0.00028219,2]
[340146759,1728679855204,-512.05247561,0.00028219,2]
[340146760,1728679855213,-508.70621483,0.00028219,2]
[340146761,1728679855223,-521.47158545,0.00028219,2]
[340146762,1728679855233,-151.0,0.00028219,7]
[340146763,1728679855244,-467.88807868,0.00028219,2]
[340146764,1728679855253,-501.69972786,0.00028219,2]
[340146765,1728679855262,-500.0,0.00028219,2]
[340146766,1728679855271,-510.20325524,0.00028219,2]
[340146767,1728679855281,-500.0,0.00028219,2]
[340146768,1728679855290,-511.68687859,0.00028219,2]
[340146769,1728679855299,-509.42706971,0.00028219,2]
[340146770,1728679855308,-508.68313087,0.00028219,2]
[340146771,1728679855318,-531.39759193,0.00028219,2]
[340146772,1728679855327,-500.0,0.00028219,2]
[340146773,1728679855338,-510.93212044,0.00028219,2]
[340146774,1728679855347,-353.03440226,0.00028219,2]
[340146775,1728679855358,-596.76,0.00028219,2]
[340146776,1728679855370,-522.62056875,0.00028219,2]
[340146777,1728679855380,-500.0,0.00028219,2]
[340146778,1728679855390,-512.78045782,0.00028219,2]
[340146779,1728679855399,-648.8257439,0.00028219,2]
[340146780,1728679855408,-506.97329812,0.00028219,2]
[340146781,1728679855417,-635.08329068,0.00028219,2]
[340146782,1728679855427,-510.44339652,0.00028219,2]
[340146783,1728679855436,-500.0,0.00028219,2]
[340146784,1728679855445,-516.46579239,0.00028219,2]
[340146785,1728679855454,-500.0,0.00028219,2]
[340146786,1728679855463,-503.98514941,0.00028219,2]
[340146787,1728679855472,-502.78923866,0.00028219,2]
[340146788,1728679855481,-519.55975351,0.00028219,2]
[340146789,1728679855490,-513.30064294,0.00028219,2]
[340146790,1728679855499,-518.21234489,0.00028219,2]
[340146791,1728679855510,-527.87068506,0.00028219,2]
[340146792,1728679855520,-500.0,0.00028219,2]
[340146793,1728679855529,-500.81029735,0.00028219,2]
[340146794,1728679855539,-516.92241932,0.00028219,2]
[340146795,1728679855548,-204.49333216,0.00028219,2]
[340146796,1728679855557,-229.07123,0.00028219,7]
[340146797,1728679855566,-541.63851754,0.00028219,2]
[340146798,1728679855575,-508.71735413,0.00028219,2]
[340146799,1728679855585,-500.0,0.00028219,2]
[340146800,1728679855594,-586.18730807,0.00028219,2]
[340146801,1728679855603,-500.0,0.00028219,2]
[340146802,1728679855612,-511.26421477,0.00028219,2]
[340146803,1728679855622,-500.0,0.00028219,2]
[340146804,1728679855632,-500.0,0.00028219,2]
[340146805,1728679855642,-500.0,0.00028219,2]
[340146806,1728679855653,-513.80930419,0.00028219,2]
[340146807,1728679855662,-606.95913264,0.00028219,2]
[340146808,1728679855672,-503.74701231,0.00028219,2]
[340146809,1728679855682,-234.61711501,0.00028219,2]
[340146810,1728679855692,-151.0,0.00028219,7]
[340146811,1728679855702,-507.36390889,0.00028219,2]
[340146812,1728679855712,-500.0,0.00028219,2]
[340146813,1728679855722,-500.0,0.00028219,2]
[340146814,1728679855731,-151.0,0.00028219,7]
[340146815,1728679855740,-510.34740123,0.00028219,2]
[340146816,1728679855751,-500.0,0.00028219,2]